[Event "FIDE WY-U16 Olympiad 2022"]
[Site "Nakhchivan"]
[Date "2022.10.05"]
[Round "4.29"]
[White "Karsten, Jan"]
[Black "Arkadan, Adib"]
[Result "1/2-1/2"]
[ECO "B51"]
[WhiteElo "1985"]
[BlackElo "1928"]
[Annotator "TA"]
[PlyCount "129"]
[EventDate "2022.10.02"]
[EventType "team-tourn"]
[EventCountry "AZE"]
[SourceTitle "playchess.com"]
[Source "ChessBase"]
[SourceQuality "1"]
[WhiteTeam "South Africa"]
[BlackTeam "Lebanon"]
[WhiteTeamCountry "RSA"]
[BlackTeamCountry "LBN"]
[TimeControl "40/5400+30:1800+30"]

{[%evp 9,129,13,11,11,43,29,27,37,31,27,37,40,64,21,14,25,59,59,60,57,50,57,62,66,67,67,73,64,64,58,60,49,56,49,47,39,58,39,46,20,111,44,89,30,67,24,64,37,69,80,91,53,47,0,101,25,62,17,70,47,66,50,67,83,112,59,79,85,84,73,84,79,104,77,77,77,83,62,62,54,62,54,62,62,65,56,56,27,27,9,9,9,27,27,27,27,27,2,27,0,2,-64,0,0,0,0,0,0,0,0,0,0,0,0,0,0,0,0,0,0,0,0]} 1. e4 {[%emt 0:00:04]} c5 {[%emt 0:00:22]} 2. Nf3 {[%emt 0:00:09]} d6 {[%emt 0:00:22]} 3. Bb5+ {[%emt 0:00:10]} Nd7 {[%emt 0:00:20]} 4. a4 {[%emt 0:00:06]} Ngf6 {[%emt 0:00:14]} 5. Nc3 {[%emt 0:00:11]} a6 {[%emt 0:00:21]} (5... e6 {is interesting.} 6. d4 cxd4 7. Qxd4 a6) 6. Be2 {[%emt 0:00:09] B51: Sicilian: Moscow Variation (3 Bb5+) without 3...Bd7.} g6 {[%emt 0:00:14]} 7. O-O {[%emt 0:00:24]} Bg7 {[%emt 0:00:27]} 8. a5 {[%emt 0:00:10] White has an edge.} O-O {[%emt 0:00:58]} 9. d3 {[%emt 0:00:16]} b5 {[%emt 0:01:58]} 10. axb6 $1 {[%emt 0:00:08]} Bb7 {[%emt 0:03:53]} 11. Qd2 {[%emt 0:01:32]} Nxb6 {[%emt 0:08:00]} 12. Qg5 {[%emt 0:04:38]} e5 {[%emt 0:28:12][%cal Oc5c4]} 13. Qh4 {[%emt 0:09:31]} Nfd7 {[%emt 0:11:05] [#]} 14. Qxd8 $146 {[%emt 0:05:16]} ({Predecessor:} 14. Qh3 Nb8 15. Bg5 f6 16. Qe6+ Kh8 17. Be3 Nc6 18. Na4 Nxa4 19. Rxa4 Nd4 20. Bxd4 cxd4 {½-½ (32) Knudsen,S (2210)-Poupalos,N (1971) Cattolica 2022}) 14... Rfxd8 {[%emt 0:01:04]} 15. Nd2 {[%emt 0:02:56]} a5 {[%emt 0:06:46]} 16. Nc4 {[%emt 0:04:19]} Nxc4 {[%emt 0:00:10]} 17. dxc4 {[%emt 0:00:16]} Nb6 {[%emt 0:14:54]} 18. Bg5 {[%emt 0:09:30]} f6 {[%emt 0:00:44]} 19. Be3 {[%emt 0:00:18]} Bc6 {[%emt 0:01:54]} 20. Rfd1 {[%emt 0:03:08]} Kf7 {[%emt 0:02:02]} 21. Ra3 {[%emt 0:02:49]} Bf8 {[%emt 0:04:45]} 22. f3 {[%emt 0:01:46]} a4 {[%emt 0:01:33]} 23. Rda1 {[%emt 0:01:30]} Rdb8 {[%emt 0:05:37]} 24. Kf1 {[%emt 0:03:36]} Ra5 {[%emt 0:02:18] [#]} (24... f5 $11 {remains equal.}) 25. Ke1 {[%emt 0:07:18]} (25. b3 $1 $16) 25... Be7 {[%emt 0:01:24]} 26. Kd1 {[%emt 0:06:38]} (26. b3 $16) 26... Bd8 {[%emt 0:00:16]} 27. Kc1 {[%emt 0:01:01]} Ke7 {[%emt 0:01:22]} 28. Bd2 {[%emt 0:03:36] Strongly threatening Nd5+.} Ra7 {[%emt 0:00:39]} 29. b3 {[%emt 0:00:54]} Rba8 {[%emt 0:01:37]} 30. Nb5 {[%emt 0:02:24]} Ra6 {[%emt 0:00:30]} 31. Nc3 {[%emt 0:04:46]} (31. h4 $14) 31... R6a7 $1 $16 {[%emt 0:00:44]} 32. Bd1 {[%emt 0:02:52]} ({White should try} 32. g4 $16) 32... Ra6 {[%emt 0:01:08]} 33. Nd5+ {[%emt 0:04:45]} Kd7 {[%emt 0:00:01]} (33... Nxd5 $11 34. cxd5 Bb5) 34. c3 {[%emt 0:05:39] White has more active pieces.} R6a7 {[%emt 0:00:44]} 35. Be2 {[%emt 0:01:05]} Kc8 {[%emt 0:00:42]} 36. b4 {[%emt 0:02:20][%cal Bb3b4,Bb4b5][%mdl 32]} Kb7 {[%emt 0:00:13]} 37. Nxb6 {[%emt 0:02:22]} ({Better is} 37. Rb1 $16) 37... Bxb6 {[%emt 0:00:03]} 38. b5 {[%emt 0:00:23]} Bd7 {[%emt 0:00:01]} 39. Kc2 {[%emt 0:00:41]} f5 {[%emt 0:01:07]} 40. Bg5 {[%emt 0:00:48] Rd1 is the strong threat.} Re8 {[%emt 0:01:13]} 41. Rxa4 {[%emt 0:33:09]} Rxa4 {[%emt 0:04:07]} 42. Rxa4 {[%emt 0:00:00]} h6 {[%emt 0:06:05]} 43. Bd2 {[%emt 0:00:00]} f4 {[%emt 0:00:11]} 44. Ra1 {[%emt 0:00:00]} Ra8 {[%emt 0:00:48]} 45. Rd1 {[%emt 0:00:00]} Be6 {[%emt 0:00:51]} 46. Kb2 {[%emt 0:00:00]} g5 {[%emt 0:03:33]} 47. Rg1 {[%emt 0:00:00]} h5 {[%emt 0:03:11]} 48. g3 {[%emt 0:00:00]} Rg8 {[%emt 0:00:37]} 49. Bf1 {[%emt 0:00:00]} Bd8 {[%emt 0:01:23]} 50. Kb3 {[%emt 0:00:00]} Bf6 {[%emt 0:01:02]} 51. gxf4 {[%emt 0:00:00]} gxf4 {[%emt 0:05:41]} 52. Rxg8 {[%emt 0:00:00]} Bxg8 $11 {[%emt 0:00:04][%mdl 4096] Endgame KBB-KBB} 53. Bh3 {[%emt 0:00:00]} Bf7 {[%emt 0:05:19]} 54. Bd7 {[%emt 0:00:00]} Kc7 {[%emt 0:00:53]} 55. Bc6 {[%emt 0:00:00]} (55. Bf5 $11) 55... Be6 {[%emt 0:02:08]} (55... h4 $1 $15) 56. Be1 {[%emt 0:00:00] The position is equal.} h4 {[%emt 0:00:31]} 57. Bd5 {[%emt 0:03:16]} Bh3 {[%emt 0:00:33]} 58. Bf7 {[%emt 0:00:51]} Bg2 {[%emt 0:00:39]} 59. Bh5 {[%emt 0:00:08]} Bf1 {[%emt 0:00:19]} 60. Bg4 {[%emt 0:02:01]} Kb6 {[%emt 0:00:14]} 61. h3 {[%emt 0:00:45]} Bd3 {[%emt 0:00:10]} 62. Bd2 {[%emt 0:01:40]} Bg5 {[%emt 0:00:10]} 63. Be1 {[%emt 0:01:06]} Bf6 {[%emt 0:00:07]} 64. Bd2 {[%emt 0:00:04]} Bg5 {[%emt 0:00:04]} 65. Be1 {[%emt 0:00:05] Weighted Error Value: White=0.18 (very precise) /Black=0.15 (very precise)} 1/2-1/2

[Event "FIDE WY-U16 Olympiad 2022"]
[Site "Nakhchivan"]
[Date "2022.10.05"]
[Round "4.30"]
[White "Karam, Youssef Mark"]
[Black "Badenhorst, Chloe"]
[Result "1/2-1/2"]
[ECO "D72"]
[WhiteElo "1522"]
[BlackElo "1687"]
[Annotator "NA RC COMBH"]
[PlyCount "78"]
[EventDate "2022.10.02"]
[EventType "team-tourn"]
[EventCountry "AZE"]
[SourceTitle "playchess.com"]
[Source "ChessBase"]
[SourceQuality "1"]
[WhiteTeam "Lebanon"]
[BlackTeam "South Africa"]
[WhiteTeamCountry "LBN"]
[BlackTeamCountry "RSA"]
[TimeControl "40/5400+30:1800+30"]

1. d4 {[%emt 0:00:33]} Nf6 {[%emt 0:00:03]} 2. c4 {[%emt 0:00:06]} g6 {[%emt 0:00:08]} 3. g3 {[%emt 0:00:26]} Bg7 {[%emt 0:00:15]} 4. Bg2 {[%emt 0:00:21]} d5 {[%emt 0:00:07]} 5. cxd5 {[%emt 0:00:44]} Nxd5 {[%emt 0:00:07]} 6. e4 {[%emt 0:00:29]} Nb6 {[%emt 0:00:05]} 7. Ne2 {[%emt 0:00:04]} O-O {[%emt 0:00:33]} 8. O-O {[%emt 0:02:52]} Nc6 {[%emt 0:01:06]} 9. d5 {[%emt 0:00:39]} Na5 {[%emt 0:06:50]} 10. Nec3 {[%emt 0:02:13]} Bd7 {[%emt 0:04:31]} 11. a4 {[%emt 0:02:06]} c5 {[%emt 0:12:29]} 12. dxc6 {[%emt 0:11:46]} Bxc6 {[%emt 0:04:59]} 13. Nd2 {[%emt 0:10:10]} Bd7 {[%emt 0:13:21]} 14. Nb3 {[%emt 0:08:20]} Nxb3 {[%emt 0:01:47]} 15. Qxb3 {[%emt 0:03:56]} Be6 {[%emt 0:03:52]} 16. Nd5 {[%emt 0:11:36]} Nxd5 {[%emt 0:00:33]} 17. exd5 {[%emt 0:00:07]} Bc8 {[%emt 0:00:11]} 18. Bf4 {[%emt 0:00:51]} Qb6 {[%emt 0:08:24]} 19. Qxb6 {[%emt 0:04:34]} axb6 {[%emt 0:00:05]} 20. Ra2 {[%emt 0:04:13]} b5 {[%emt 0:06:09]} 21. a5 {[%emt 0:01:26]} e5 {[%emt 0:13:04]} 22. Be3 {[%emt 0:01:35]} f5 {[%emt 0:00:47]} 23. Rc1 {[%emt 0:04:54]} e4 {[%emt 0:06:08]} 24. Bf1 {[%emt 0:00:50]} Rd8 {[%emt 0:02:21]} 25. Bxb5 {[%emt 0:00:21]} Rxd5 {[%emt 0:02:59]} 26. Bc4 {[%emt 0:00:21]} Be6 {[%emt 0:00:02]} 27. Bxd5 {[%emt 0:00:20]} Bxd5 {[%emt 0:00:02]} 28. Ra4 {[%emt 0:00:51]} Bxb2 {[%emt 0:00:38]} 29. Rc5 {[%emt 0:07:24]} Bc6 {[%emt 0:00:32]} 30. Ra2 {[%emt 0:00:17]} Bf6 {[%emt 0:02:10]} 31. a6 {[%emt 0:00:42]} Rd8 {[%emt 0:02:43]} 32. a7 {[%emt 0:08:51]} Ra8 {[%emt 0:00:41]} 33. Bf4 {[%emt 0:01:40]} Bd4 {[%emt 0:01:22]} 34. Rca5 {[%emt 0:00:52]} Bb6 {[%emt 0:00:48]} 35. R5a3 {[%emt 0:01:35]} Bc5 {[%emt 0:00:16]} 36. Ra5 {[%emt 0:05:48]} Bb6 {[%emt 0:00:06]} 37. R5a3 {[%emt 0:02:10]} Bc5 {[%emt 0:00:03]} 38. Ra5 {[%emt 0:00:12]} Bb6 {[%emt 0:00:05]} 39. R5a3 Bc5 1/2-1/2

[Event "FIDE WY-U16 Olympiad 2022"]
[Site "Nakhchivan"]
[Date "2022.10.05"]
[Round "4.31"]
[White "Meise, Keagen"]
[Black "Fawaz, Mohamad"]
[Result "1-0"]
[ECO "E77"]
[WhiteElo "1362"]
[BlackElo "1553"]
[Annotator "NA RC COMBH"]
[PlyCount "85"]
[EventDate "2022.10.02"]
[EventType "team-tourn"]
[EventCountry "AZE"]
[SourceTitle "playchess.com"]
[Source "ChessBase"]
[SourceQuality "1"]
[WhiteTeam "South Africa"]
[BlackTeam "Lebanon"]
[WhiteTeamCountry "RSA"]
[BlackTeamCountry "LBN"]
[TimeControl "40/5400+30:1800+30"]

1. d4 {[%emt 0:00:03]} Nf6 {[%emt 0:00:11]} 2. c4 {[%emt 0:00:06]} g6 {[%emt 0:00:03]} 3. Nc3 {[%emt 0:00:04]} Bg7 {[%emt 0:00:04]} 4. e4 {[%emt 0:00:07]} d6 {[%emt 0:00:04]} 5. f4 {[%emt 0:00:04]} O-O {[%emt 0:00:56]} 6. Nf3 {[%emt 0:00:04]} c5 {[%emt 0:00:04]} 7. d5 {[%emt 0:00:04]} e6 {[%emt 0:00:03]} 8. Bd3 {[%emt 0:00:26]} exd5 {[%emt 0:00:05]} 9. cxd5 {[%emt 0:00:15]} c4 {[%emt 0:00:09]} 10. Bc2 {[%emt 0:00:26]} Re8 {[%emt 0:00:25]} 11. O-O {[%emt 0:00:26]} Nbd7 {[%emt 0:00:16]} 12. Be3 {[%emt 0:00:38]} Nxe4 {[%emt 0:34:42]} 13. Nxe4 {[%emt 0:10:08]} f5 {[%emt 0:00:12]} 14. Nxd6 {[%emt 0:00:26]} Rxe3 {[%emt 0:00:13]} 15. Nxc4 {[%emt 0:00:07]} Re8 {[%emt 0:01:48]} 16. Re1 {[%emt 0:03:12]} Rxe1+ {[%emt 0:02:02]} 17. Qxe1 {[%emt 0:00:05]} Nf6 {[%emt 0:00:40]} 18. Rd1 {[%emt 0:07:25]} b5 {[%emt 0:12:33]} 19. Na3 {[%emt 0:02:47]} Ng4 {[%emt 0:21:24]} 20. Nxb5 {[%emt 0:07:27]} Rb8 {[%emt 0:04:18]} 21. Nbd4 {[%emt 0:01:01]} Rxb2 {[%emt 0:02:25]} 22. h3 {[%emt 0:00:35]} Nf6 {[%emt 0:05:10]} 23. d6 {[%emt 0:06:21]} h6 {[%emt 0:02:56]} 24. Bb3+ {[%emt 0:00:14]} Kh7 {[%emt 0:01:38]} 25. Qc3 {[%emt 0:00:08]} Rxb3 {[%emt 0:03:12]} 26. Nxb3 {[%emt 0:00:28]} Ne4 {[%emt 0:00:39]} 27. Qc7 {[%emt 0:00:21]} Qxc7 {[%emt 0:01:36]} 28. dxc7 {[%emt 0:00:05]} Bf6 {[%emt 0:00:06]} 29. Rd8 {[%emt 0:00:08]} Ba6 {[%emt 0:01:55]} 30. c8=Q {[%emt 0:00:07]} Bxc8 {[%emt 0:00:07]} 31. Rxc8 {[%emt 0:00:05]} g5 {[%emt 0:01:15]} 32. fxg5 {[%emt 0:00:14]} hxg5 {[%emt 0:00:01]} 33. Rc7+ {[%emt 0:00:12]} Kg6 {[%emt 0:00:05]} 34. Rxa7 {[%emt 0:00:07]} g4 {[%emt 0:00:17]} 35. hxg4 {[%emt 0:00:03]} fxg4 {[%emt 0:00:01]} 36. Nfd2 {[%emt 0:00:18]} Nc3 {[%emt 0:00:37]} 37. Ra6 {[%emt 0:00:27]} Kf5 {[%emt 0:00:08]} 38. Kf2 {[%emt 0:00:19]} Be5 {[%emt 0:01:29]} 39. Ra5 {[%emt 0:00:37]} Kf6 {[%emt 0:00:53]} 40. Kf1 {[%emt 0:01:34]} Nd1 {[%emt 0:00:40]} 41. Nc4 {[%emt 0:30:16]} Bf4 {[%emt 0:30:30]} 42. Nd4 {[%emt 0:00:57]} Nc3 {[%emt 0:00:53]} 43. Rf5+ {[%emt 0:00:19]} 1-0

[Event "FIDE WY-U16 Olympiad 2022"]
[Site "Nakhchivan"]
[Date "2022.10.05"]
[Round "4.32"]
[White "Fawaz, Nadia"]
[Black "Potgieter, Edward"]
[Result "0-1"]
[ECO "C29"]
[WhiteElo "1385"]
[BlackElo "1567"]
[Annotator "NA RC COMBH"]
[PlyCount "118"]
[EventDate "2022.10.02"]
[EventType "team-tourn"]
[EventCountry "AZE"]
[SourceTitle "playchess.com"]
[Source "ChessBase"]
[SourceQuality "1"]
[WhiteTeam "Lebanon"]
[BlackTeam "South Africa"]
[WhiteTeamCountry "LBN"]
[BlackTeamCountry "RSA"]
[TimeControl "40/5400+30:1800+30"]

1. e4 {[%emt 0:00:22]} e5 {[%emt 0:00:07]} 2. Nc3 {[%emt 0:00:51]} Nf6 {[%emt 0:03:05]} 3. f4 {[%emt 0:01:32]} d5 {[%emt 0:06:35]} 4. fxe5 {[%emt 0:02:02]} Nxe4 {[%emt 0:01:41]} 5. Qf3 {[%emt 0:02:48]} Nxc3 {[%emt 0:06:12]} 6. bxc3 {[%emt 0:01:51]} c5 {[%emt 0:10:03]} 7. Ne2 {[%emt 0:09:19]} Nc6 {[%emt 0:02:44]} 8. d4 {[%emt 0:06:37]} Be6 {[%emt 0:11:25]} 9. Be3 {[%emt 0:13:36]} cxd4 {[%emt 0:06:25]} 10. cxd4 {[%emt 0:07:08]} Nb4 {[%emt 0:02:01]} 11. Nf4 {[%emt 0:08:42]} Nxc2+ {[%emt 0:21:42]} 12. Kf2 {[%emt 0:00:59]} a6 {[%emt 0:03:00]} 13. Rb1 {[%emt 0:04:50]} Qd7 {[%emt 0:03:03]} 14. Nxe6 {[%emt 0:06:14]} fxe6 {[%emt 0:00:34]} 15. Bd3 {[%emt 0:06:15]} Nxe3 {[%emt 0:04:06]} 16. Kxe3 {[%emt 0:00:56]} g6 {[%emt 0:06:23]} 17. Rb6 {[%emt 0:03:57]} Rc8 {[%emt 0:06:33]} 18. Qf6 {[%emt 0:02:37]} Rg8 {[%emt 0:02:44]} 19. Rxe6+ {[%emt 0:02:22]} Be7 {[%emt 0:00:07]} 20. Rf1 {[%emt 0:08:44]} Kd8 {[%emt 0:00:54]} 21. Qf7 {[%emt 0:02:30]} Rf8 {[%emt 0:00:25]} 22. Rxe7 {[%emt 0:02:36]} Rxf7 {[%emt 0:00:25]} 23. Rxd7+ {[%emt 0:00:19]} Rxd7 {[%emt 0:00:08]} 24. h4 {[%emt 0:00:31]} Ke7 {[%emt 0:01:05]} 25. h5 {[%emt 0:00:55]} Rf8 {[%emt 0:00:45]} 26. Rh1 {[%emt 0:01:23]} Rg8 {[%emt 0:00:35]} 27. hxg6 {[%emt 0:00:16]} hxg6 {[%emt 0:00:01]} 28. Rh6 {[%emt 0:00:40]} g5 {[%emt 0:00:25]} 29. Bf5 {[%emt 0:00:34]} Rc7 {[%emt 0:00:35]} 30. Be6 {[%emt 0:00:44]} Rc6 {[%emt 0:01:05]} 31. Bxg8 {[%emt 0:00:10]} Rxh6 {[%emt 0:00:06]} 32. Bxd5 {[%emt 0:00:11]} b6 {[%emt 0:00:27]} 33. Ke4 {[%emt 0:01:04]} Rh4+ {[%emt 0:00:24]} 34. Ke3 {[%emt 0:00:12]} a5 {[%emt 0:00:36]} 35. Kd3 {[%emt 0:00:27]} Rg4 {[%emt 0:00:50]} 36. Ke3 {[%emt 0:00:34]} Rg3+ {[%emt 0:00:22]} 37. Ke2 {[%emt 0:00:09]} b5 {[%emt 0:00:35]} 38. Bf3 {[%emt 0:00:42]} g4 {[%emt 0:00:28]} 39. Kf2 {[%emt 0:00:27]} gxf3 {[%emt 0:00:08]} 40. Kxg3 {[%emt 0:00:02]} fxg2 {[%emt 0:00:36]} 41. Kxg2 {[%emt 0:30:12]} b4 {[%emt 0:30:10]} 42. Kf3 {[%emt 0:00:18]} a4 {[%emt 0:00:07]} 43. Ke3 {[%emt 0:00:06]} b3 {[%emt 0:00:09]} 44. axb3 {[%emt 0:00:06]} a3 {[%emt 0:00:07]} 45. Kd3 {[%emt 0:00:31]} a2 {[%emt 0:00:11]} 46. Kc4 {[%emt 0:00:09]} a1=Q {[%emt 0:00:08]} 47. b4 {[%emt 0:00:31]} Qa2+ {[%emt 0:00:35]} 48. Kc5 {[%emt 0:00:09]} Qa7+ {[%emt 0:00:37]} 49. Kc4 {[%emt 0:00:42]} Qc7+ {[%emt 0:00:13]} 50. Kd5 {[%emt 0:01:10]} Qb6 {[%emt 0:00:21]} 51. Kc4 {[%emt 0:00:21]} Qc6+ {[%emt 0:00:06]} 52. Kd3 {[%emt 0:00:18]} Qd5 {[%emt 0:00:20]} 53. Kc3 {[%emt 0:00:09]} Ke6 {[%emt 0:00:12]} 54. Kd3 {[%emt 0:00:16]} Qb3+ {[%emt 0:00:15]} 55. Ke4 {[%emt 0:00:13]} Qb1+ {[%emt 0:00:09]} 56. Ke3 {[%emt 0:00:12]} Qxb4 {[%emt 0:00:09]} 57. Ke4 {[%emt 0:00:50]} Qe1+ {[%emt 0:00:05]} 58. Kd3 {[%emt 0:00:26]} Kd5 {[%emt 0:00:06]} 59. Kc2 {[%emt 0:00:59]} Kxd4 {[%emt 0:00:16]} 0-1

[Event "FIDE WY-U16 Olympiad 2022"]
[Site "Nakhchivan"]
[Date "2022.10.05"]
[Round "4.33"]
[White "Nuriyeva, Nurtan"]
[Black "Cheng, Justin Hong-Chen"]
[Result "0-1"]
[ECO "E73"]
[WhiteElo "1651"]
[BlackElo "1843"]
[Annotator "NA RC COMBH"]
[PlyCount "144"]
[EventDate "2022.10.02"]
[EventType "team-tourn"]
[EventCountry "AZE"]
[SourceTitle "playchess.com"]
[Source "ChessBase"]
[SourceQuality "1"]
[WhiteTeam "Azerbaijan"]
[BlackTeam "Hong Kong"]
[WhiteTeamCountry "AZE"]
[BlackTeamCountry "HKG"]
[TimeControl "40/5400+30:1800+30"]

1. d4 {[%emt 0:00:08]} Nf6 {[%emt 0:00:14]} 2. c4 {[%emt 0:00:29]} g6 {[%emt 0:00:37]} 3. Nc3 {[%emt 0:00:26]} Bg7 {[%emt 0:00:41]} 4. e4 {[%emt 0:00:21]} d6 {[%emt 0:00:35]} 5. Be2 {[%emt 0:00:13]} O-O {[%emt 0:01:24]} 6. Bg5 {[%emt 0:00:13]} c5 {[%emt 0:09:47]} 7. d5 {[%emt 0:01:00]} e6 {[%emt 0:05:20]} 8. Qd2 {[%emt 0:01:44]} Qa5 {[%emt 0:11:02]} 9. f3 {[%emt 0:01:23]} exd5 {[%emt 0:02:32]} 10. cxd5 {[%emt 0:07:39]} a6 {[%emt 0:05:37]} 11. g4 {[%emt 0:02:15]} Re8 {[%emt 0:14:01]} 12. h4 {[%emt 0:02:22]} Nbd7 {[%emt 0:05:37]} 13. Nh3 {[%emt 0:03:11]} b5 {[%emt 0:04:27]} 14. Kf2 {[%emt 0:14:24]} c4 {[%emt 0:02:28]} 15. a4 {[%emt 0:15:42]} b4 {[%emt 0:07:15]} 16. Na2 {[%emt 0:05:36]} c3 {[%emt 0:01:13]} 17. bxc3 {[%emt 0:00:38]} bxc3 {[%emt 0:00:04]} 18. Qc2 {[%emt 0:00:17]} Nc5 {[%emt 0:02:29]} 19. Kg2 {[%emt 0:05:12]} Qxa4 {[%emt 0:03:57]} 20. Qxa4 {[%emt 0:03:00]} Nxa4 {[%emt 0:00:02]} 21. Nb4 {[%emt 0:00:14]} Nc5 {[%emt 0:01:32]} 22. Nf2 {[%emt 0:00:55]} a5 {[%emt 0:04:22]} 23. Bb5 {[%emt 0:01:07]} Bd7 {[%emt 0:01:44]} 24. Nc6 {[%emt 0:00:11]} h5 {[%emt 0:05:15]} 25. gxh5 {[%emt 0:03:34]} Nxh5 {[%emt 0:00:10]} 26. Be3 {[%emt 0:01:29]} f5 {[%emt 0:01:44]} 27. Bxc5 {[%emt 0:01:26]} dxc5 {[%emt 0:00:13]} 28. Rhe1 {[%emt 0:00:32]} Kh8 {[%emt 0:04:34]} 29. Nd3 {[%emt 0:01:36]} fxe4 {[%emt 0:00:38]} 30. fxe4 {[%emt 0:02:11]} Rf8 {[%emt 0:01:59]} 31. Nxc5 {[%emt 0:00:43]} Bg4 {[%emt 0:02:01]} 32. Rxa5 {[%emt 0:03:58]} Rxa5 {[%emt 0:00:33]} 33. Nxa5 {[%emt 0:02:54]} Bd4 {[%emt 0:01:02]} 34. Nd3 {[%emt 0:02:26]} Ra8 {[%emt 0:00:17]} 35. Ra1 {[%emt 0:02:08]} c2 {[%emt 0:00:22]} 36. Ra2 {[%emt 0:01:15]} Rxa5 {[%emt 0:01:40]} 37. Rxa5 {[%emt 0:00:25]} Nf4+ {[%emt 0:00:04]} 38. Nxf4 {[%emt 0:05:30]} c1=Q {[%emt 0:00:06]} 39. Ne2 {[%emt 0:00:27]} Qd2 {[%emt 0:00:49]} 40. Ra8+ {[%emt 0:01:18]} Kg7 {[%emt 0:00:07]} 41. Bc4 {[%emt 0:30:14]} Qc2 {[%emt 0:31:24]} 42. Kg3 {[%emt 0:01:49]} Bxe2 {[%emt 0:00:52]} 43. Bxe2 {[%emt 0:00:25]} Qxe2 {[%emt 0:00:05]} 44. d6 {[%emt 0:00:07]} Qe3+ {[%emt 0:00:56]} 45. Kh2 {[%emt 0:00:12]} Qf4+ {[%emt 0:00:31]} 46. Kh3 {[%emt 0:00:13]} Qxd6 {[%emt 0:00:00]} 47. e5 {[%emt 0:00:00]} Qe6+ {[%emt 0:00:00]} 48. Kg3 {[%emt 0:00:00]} Bxe5+ {[%emt 0:00:00]} 49. Kf2 {[%emt 0:00:00]} Qf5+ {[%emt 0:00:00]} 50. Ke3 {[%emt 0:00:00]} Qf4+ {[%emt 0:00:00]} 51. Kd3 {[%emt 0:00:00]} Qd4+ {[%emt 0:00:00]} 52. Kc2 {[%emt 0:00:00]} Qc3+ {[%emt 0:00:00]} 53. Kd1 {[%emt 0:00:00]} Qd3+ {[%emt 0:00:00]} 54. Kc1 {[%emt 0:00:00]} Bc3 {[%emt 0:00:00]} 55. Ra2 {[%emt 0:00:00]} Qf1+ {[%emt 0:00:00]} 56. Kc2 {[%emt 0:00:00]} Qe2+ {[%emt 0:00:00]} 57. Kb3 {[%emt 0:00:00]} Qe6+ {[%emt 0:00:00]} 58. Ka3 {[%emt 0:00:00]} Qxa2+ {[%emt 0:00:00]} 59. Kxa2 {[%emt 0:00:00]} Kh6 {[%emt 0:00:00]} 60. Kb3 {[%emt 0:00:00]} Bf6 {[%emt 0:00:00]} 61. Kc2 {[%emt 0:00:00]} Bxh4 {[%emt 0:00:00]} 62. Kd3 {[%emt 0:00:00]} Kg5 {[%emt 0:00:00]} 63. Ke2 {[%emt 0:00:00]} Kf4 {[%emt 0:00:00]} 64. Kf1 {[%emt 0:00:00]} g5 {[%emt 0:00:00]} 65. Kg2 {[%emt 0:00:00]} Kg4 {[%emt 0:00:00]} 66. Kg1 {[%emt 0:00:00]} Kg3 {[%emt 0:00:00]} 67. Kh1 {[%emt 0:00:00]} g4 {[%emt 0:00:00]} 68. Kg1 {[%emt 0:00:00]} Bd8 {[%emt 0:00:00]} 69. Kh1 {[%emt 0:00:00]} Kh3 {[%emt 0:00:00]} 70. Kg1 {[%emt 0:00:00]} g3 {[%emt 0:00:00]} 71. Kh1 {[%emt 0:00:00]} g2+ {[%emt 0:00:00]} 72. Kg1 {[%emt 0:00:00]} Bb6# 0-1

[Event "FIDE WY-U16 Olympiad 2022"]
[Site "Nakhchivan"]
[Date "2022.10.05"]
[Round "4.34"]
[White "Li, Yiheng"]
[Black "Huseynli, Ayan"]
[Result "1/2-1/2"]
[ECO "C18"]
[WhiteElo "1766"]
[BlackElo "1492"]
[Annotator "NA RC COMBH"]
[PlyCount "85"]
[EventDate "2022.10.02"]
[EventType "team-tourn"]
[EventCountry "AZE"]
[SourceTitle "playchess.com"]
[Source "ChessBase"]
[SourceQuality "1"]
[WhiteTeam "Hong Kong"]
[BlackTeam "Azerbaijan"]
[WhiteTeamCountry "HKG"]
[BlackTeamCountry "AZE"]
[TimeControl "40/5400+30:1800+30"]

1. e4 {[%emt 0:00:03]} e6 {[%emt 0:00:11]} 2. d4 {[%emt 0:00:07]} d5 {[%emt 0:00:03]} 3. Nc3 {[%emt 0:00:06]} Bb4 {[%emt 0:00:04]} 4. e5 {[%emt 0:00:26]} c5 {[%emt 0:00:05]} 5. a3 {[%emt 0:00:23]} Bxc3+ {[%emt 0:00:05]} 6. bxc3 {[%emt 0:00:05]} Ne7 {[%emt 0:00:04]} 7. Qg4 {[%emt 0:00:58]} Kf8 {[%emt 0:00:10]} 8. h4 {[%emt 0:03:04]} Qa5 {[%emt 0:01:11]} 9. Bd2 {[%emt 0:00:59]} Qa4 {[%emt 0:01:02]} 10. Rh3 {[%emt 0:11:38]} Nbc6 {[%emt 0:07:07]} 11. Nf3 {[%emt 0:02:08]} Qxc2 {[%emt 0:13:30]} 12. Rc1 {[%emt 0:14:20]} Qe4+ {[%emt 0:08:30]} 13. Qxe4 {[%emt 0:00:08]} dxe4 {[%emt 0:00:04]} 14. Ng5 {[%emt 0:00:15]} cxd4 {[%emt 0:00:56]} 15. cxd4 {[%emt 0:00:10]} Nxd4 {[%emt 0:00:18]} 16. Nxe4 {[%emt 0:02:47]} Ndc6 {[%emt 0:01:43]} 17. f4 {[%emt 0:04:36]} Nd5 {[%emt 0:03:01]} 18. Nd6 {[%emt 0:01:42]} Ke7 {[%emt 0:01:44]} 19. Rg3 {[%emt 0:03:15]} g6 {[%emt 0:02:59]} 20. Be3 {[%emt 0:08:53]} Nxe3 {[%emt 0:08:58]} 21. Rxe3 {[%emt 0:00:08]} f6 {[%emt 0:08:55]} 22. g3 {[%emt 0:05:54]} fxe5 {[%emt 0:02:57]} 23. fxe5 {[%emt 0:00:58]} Rf8 {[%emt 0:05:21]} 24. Bg2 {[%emt 0:01:06]} Rb8 {[%emt 0:04:54]} 25. Bxc6 {[%emt 0:07:17]} bxc6 {[%emt 0:00:11]} 26. Rxc6 {[%emt 0:00:56]} Rb1+ {[%emt 0:00:53]} 27. Ke2 {[%emt 0:03:32]} Rb2+ {[%emt 0:06:54]} 28. Kd3 {[%emt 0:01:30]} Kd7 {[%emt 0:02:30]} 29. Rxc8 {[%emt 0:07:13]} Rxc8 {[%emt 0:00:06]} 30. Nxc8 {[%emt 0:00:12]} Kxc8 {[%emt 0:00:09]} 31. Ke4 {[%emt 0:00:33]} Kd7 {[%emt 0:01:10]} 32. Kf4 {[%emt 0:00:44]} h6 {[%emt 0:01:23]} 33. Ke4 {[%emt 0:02:05]} Ke7 {[%emt 0:02:42]} 34. Rf3 {[%emt 0:01:01]} Rg2 {[%emt 0:01:16]} 35. Rb3 {[%emt 0:01:18]} Rd2 {[%emt 0:02:09]} 36. Rb8 {[%emt 0:01:58]} Rd8 {[%emt 0:04:34]} 37. Rxd8 {[%emt 0:04:16]} Kxd8 {[%emt 0:00:05]} 38. Kd4 {[%emt 0:01:49]} Kd7 {[%emt 0:00:57]} 39. Kc5 {[%emt 0:00:26]} Kc7 {[%emt 0:00:10]} 40. g4 {[%emt 0:00:38]} Kd7 {[%emt 0:00:34]} 41. Kb5 {[%emt 0:30:27]} Kc7 {[%emt 0:30:06]} 42. Ka6 {[%emt 0:00:35]} Kb8 {[%emt 0:00:19]} 43. a4 {[%emt 0:00:53]} 1/2-1/2